bitfinex-derivatives/quotes_BTCF0:USTF0_20250211
["timestamp","ask_amount","ask_price","bid_price","bid_amount"]
[1739258419092,0.3608,98458.0,98452.0,0.03085251]
[1739258419393,0.3608,98458.0,98456.0,0.2031042]
[1739258419594,0.3608,98458.0,98457.0,0.01151198]
[1739258420295,0.3608,98458.0,98457.0,0.03052867]
[1739258420486,0.3618,98458.0,98457.0,0.03052867]
[1739258420985,0.3608,98458.0,98457.0,0.03052867]
[1739258421191,0.3628,98458.0,98457.0,0.03052867]
[1739258422588,0.3658,98458.0,98457.0,0.01151198]
[1739258423096,0.3658,98458.0,98457.0,0.0305627]
[1739258423293,0.3628,98458.0,98457.0,0.01151198]
[1739258423593,0.43048,98458.0,98457.0,0.01151198]
[1739258423793,0.43148,98458.0,98457.0,0.01151198]
[1739258426295,0.3628,98458.0,98457.0,0.01151198]
[1739258427304,0.3628,98458.0,98457.0,0.03076896]
[1739258427595,0.5659016,98458.0,98457.0,0.03076896]
[1739258427787,0.5649016,98458.0,98457.0,0.03076896]
[1739258428189,0.5639016,98458.0,98457.0,0.03076896]
[1739258428390,0.5659016,98458.0,98457.0,0.03076896]
[1739258429093,0.5639016,98458.0,98457.0,0.01351198]
[1739258429490,0.5639016,98458.0,98457.0,0.01383023]
[1739258430184,0.5659016,98458.0,98457.0,0.01383023]
[1739258430387,0.5679016,98458.0,98457.0,0.01183023]
[1739258432195,0.5689016,98458.0,98457.0,0.01183023]
[1739258433602,0.2031139,98452.0,98451.0,0.24335802]
[1739258433794,0.2031139,98452.0,98451.0,0.25506626]
[1739258435091,0.2031139,98452.0,98451.0,0.01170824]
[1739258435299,0.2031139,98452.0,98451.0,0.01370824]
[1739258435695,0.2031139,98452.0,98451.0,0.01371332]
[1739258436900,0.2031139,98452.0,98451.0,0.03245439]
[1739258437802,0.2031139,98452.0,98451.0,0.0326409]
[1739258438296,0.03,98454.0,98451.0,0.0326409]
[1739258438500,0.2031119,98453.0,98452.0,0.0306409]
[1739258441895,0.2031119,98453.0,98452.0,0.0316409]
[1739258444099,0.2031119,98453.0,98452.0,0.03147654]
[1739258444505,0.2031119,98453.0,98452.0,0.03148003]
[1739258445593,0.2031119,98453.0,98452.0,0.27493097]
[1739258450299,0.2031119,98453.0,98452.0,0.27511963]
[1739258451993,0.2031119,98453.0,98452.0,0.03166869]
[1739258452307,0.2031119,98453.0,98452.0,0.001]
[1739258452497,0.2031119,98453.0,98452.0,0.03171616]
[1739258455110,0.3608,98455.0,98452.0,0.03171616]
[1739258455312,0.3608,98455.0,98453.0,0.03071616]
[1739258455502,0.3608,98455.0,98454.0,0.03071616]
[1739258456410,0.3608,98455.0,98454.0,0.23382596]
[1739258456605,0.3618,98455.0,98454.0,0.03071616]
[1739258457102,0.3608,98455.0,98454.0,0.03071616]
[1739258457914,0.3608,98455.0,98454.0,0.23382596]
[1739258459210,0.3608,98455.0,98454.0,0.47739837]
[1739258459407,0.3618,98455.0,98454.0,0.47739837]
[1739258459905,0.3608,98455.0,98454.0,0.47739837]
[1739258460609,0.3618,98455.0,98454.0,0.47739837]
[1739258461205,0.3618,98455.0,98454.0,0.44668221]
[1739258461505,0.3618,98455.0,98454.0,0.47763214]
[1739258462011,0.3618,98455.0,98454.0,0.23405973]
[1739258462210,0.3618,98455.0,98454.0,0.23404192]
[1739258462417,0.3618,98455.0,98454.0,0.21500648]
[1739258463508,0.3618,98455.0,98454.0,0.23380688]
[1739258463705,0.3618,98455.0,98454.0,0.21500648]
[1739258464114,0.3618,98455.0,98454.0,0.23380645]
[1739258464315,0.3618,98455.0,98454.0,0.21500648]
[1739258464513,0.3618,98455.0,98454.0,0.23391808]
[1739258466307,0.3618,98455.0,98454.0,0.23383844]
[1739258468909,0.3618,98455.0,98454.0,0.23383085]
[1739258469408,0.00015234,98465.0,98454.0,0.05434807]
[1739258469608,0.00015234,98465.0,98464.0,0.2030892]
[1739258469910,0.00015234,98465.0,98464.0,0.23370329]
[1739258470416,0.00015234,98465.0,98464.0,0.2149047]
[1739258470717,0.00415234,98465.0,98464.0,0.2149047]
[1739258471720,0.20723944,98465.0,98464.0,0.2149047]
[1739258471919,0.20723944,98465.0,98464.0,0.0118155]
[1739258472220,0.21523944,98465.0,98464.0,0.0128155]
[1739258477226,0.21523944,98465.0,98464.0,0.01272098]
[1739258477922,0.21523944,98465.0,98464.0,0.21581018]
[1739258478324,0.21523944,98465.0,98464.0,0.01272098]
[1739258478619,0.21523944,98465.0,98464.0,0.02293273]
[1739258478921,0.21523944,98465.0,98464.0,0.02291647]
[1739258480215,0.01215234,98465.0,98464.0,0.22600567]
[1739258485131,0.01215234,98465.0,98464.0,0.2447241]
[1739258485635,0.01215234,98465.0,98464.0,0.2447167]
[1739258487031,0.21523944,98465.0,98464.0,0.22599903]
[1739258488929,0.21523944,98465.0,98464.0,0.46910916]
[1739258489237,0.203057,98480.0,98464.0,0.67857544]
[1739258489532,0.203057,98480.0,98479.0,0.2030568]
[1739258489722,0.203057,98480.0,98479.0,0.21475488]
[1739258490426,0.206057,98480.0,98479.0,0.21475488]
[1739258490827,0.212057,98480.0,98479.0,0.01269808]
[1739258491330,0.222057,98480.0,98479.0,0.01369808]
[1739258493222,0.222057,98480.0,98479.0,0.01396954]
[1739258493618,0.222057,98480.0,98479.0,0.002]
[1739258493928,0.222057,98480.0,98479.0,0.01397906]
[1739258494334,0.222057,98480.0,98479.0,0.002]
[1739258497038,0.582857,98480.0,98479.0,0.002]
[1739258497631,0.582857,98480.0,98479.0,0.01423874]
[1739258500731,0.582857,98480.0,98479.0,0.002]
[1739258503644,0.582857,98480.0,98479.0,0.01420579]
[1739258504745,0.582857,98480.0,98479.0,0.002]
[1739258505247,0.582857,98480.0,98479.0,0.01418301]
[1739258505643,0.582857,98480.0,98479.0,0.002]
[1739258506141,0.582857,98480.0,98479.0,0.01414518]
[1739258506647,0.582857,98480.0,98479.0,0.002]
[1739258507135,0.582857,98480.0,98479.0,0.0139878]
[1739258508951,0.2030644,98476.0,98475.0,0.18228844]
[1739258509446,0.2030644,98476.0,98438.0,0.68765681]
[1739258509447,0.5855,98476.0,98438.0,0.68765681]
[1739258509650,0.7216,98464.0,98438.0,0.48451441]
[1739258509840,0.3608,98456.0,98455.0,0.36478265]
[1739258510147,0.4284,98456.0,98455.0,0.37666182]
[1739258510644,0.4284,98456.0,98455.0,0.0134026]
[1739258511051,0.4284,98456.0,98455.0,0.0174026]
[1739258511541,0.4284,98456.0,98455.0,0.0184026]
[1739258512143,0.4284,98456.0,98455.0,0.01853888]
[1739258513150,0.0676,98456.0,98455.0,0.00652343]
[1739258513345,0.4284,98456.0,98455.0,0.00652343]
[1739258528256,0.0676,98456.0,98455.0,0.00652343]
[1739258528455,0.4284,98456.0,98455.0,0.00652343]
[1739258530160,0.4284,98456.0,98455.0,0.005]
[1739258539255,0.4284,98456.0,98455.0,0.01675483]
[1739258540053,0.4284,98456.0,98455.0,0.005]
[1739258541165,0.4284,98456.0,98455.0,0.01664487]
[1739258543160,0.4284,98456.0,98455.0,0.005]
[1739258549575,0.6463,98456.0,98455.0,0.005]
[1739258559190,0.6463,98456.0,98446.0,0.00015235]
[1739258559387,0.5639242,98447.0,98446.0,1e-08]
[1739258561283,0.5639242,98447.0,98446.0,0.01400001]
[1739258562196,0.5649242,98447.0,98446.0,0.01400001]
[1739258563987,0.5649242,98447.0,98422.0,0.07227668]
[1739258563988,0.2031706,98425.0,98422.0,0.07227668]
[1739258564288,0.3608,98424.0,98422.0,0.07227668]
[1739258565090,0.3608,98424.0,98422.0,0.08727668]
[1739258565293,0.3608,98424.0,98422.0,0.09427668]
[1739258565485,0.5639723,98424.0,98422.0,0.09427668]
[1739258567295,0.5639723,98424.0,98422.0,0.07927668]
[1739258567492,0.5659723,98424.0,98422.0,0.08427668]
[1739258569893,0.5659723,98424.0,98413.0,0.03295235]
[1739258569894,0.3628,98424.0,98413.0,0.03295235]
[1739258570094,0.5639923,98414.0,98413.0,0.03295235]
[1739258570292,0.5639923,98414.0,98413.0,0.00015235]
[1739258570592,0.5639923,98414.0,98413.0,1e-08]
[1739258571488,0.5639923,98414.0,98413.0,0.00600001]
[1739258571887,0.5649923,98414.0,98413.0,0.02000001]
[1739258572090,0.5649923,98414.0,98413.0,0.01400001]
[1739258572285,0.5659923,98414.0,98413.0,0.02000001]
[1739258580801,0.3628,98414.0,98376.0,0.3608]
[1739258581000,0.3628,98414.0,98370.0,0.05463051]
[1739258581001,0.2032501,98386.0,98370.0,0.05463051]
[1739258581207,0.2708501,98386.0,98374.0,0.01032278]
[1739258581410,0.2708501,98386.0,98379.0,0.0321]
[1739258581705,0.2032563,98383.0,98382.0,0.24304507]
[1739258582207,0.5640563,98383.0,98382.0,0.24304507]
[1739258583601,0.5680563,98383.0,98382.0,0.24304507]
[1739258583905,0.5690563,98383.0,98382.0,0.24304507]
[1739258587811,0.5690563,98383.0,98380.0,0.0301]
[1739258587812,0.2032605,98381.0,98380.0,0.0301]
[1739258590003,0.2052605,98381.0,98380.0,0.0301]
[1739258592910,0.5660605,98381.0,98380.0,0.0301]
[1739258597209,0.3628,98381.0,98380.0,0.0301]
[1739258608226,0.2032625,98380.0,98379.0,0.0321]
[1739258609127,0.3628,98381.0,98373.0,0.00015243]
[1739258609128,0.2032729,98375.0,98373.0,0.00015243]
[1739258610224,0.2042729,98375.0,98373.0,0.00015243]
[1739258612926,0.3608,98374.0,98373.0,0.00015243]
[1739258615229,0.3618,98374.0,98373.0,0.00015243]
[1739258619131,0.394,98374.0,98373.0,0.00015243]
[1739258627438,0.3618,98374.0,98373.0,0.00015243]
[1739258639647,0.3618,98374.0,98373.0,0.18309437]
[1739258646447,0.3618,98374.0,98373.0,0.00015243]
[1739258648350,0.2032495,98387.0,98386.0,0.2032455]
[1739258648653,0.5640432,98390.0,98387.0,0.2032468]
[1739258648852,0.2032443,98389.0,98387.0,0.2032468]
[1739258650452,0.2052443,98389.0,98387.0,0.2032468]
[1739258650953,0.2032443,98389.0,98387.0,0.2032468]
[1739258651350,0.3608,98388.0,98387.0,0.2032468]
[1739258657247,0.001,98388.0,98387.0,0.2032468]
[1739258657456,0.3618,98388.0,98387.0,0.2032468]
[1739258657852,0.3608,98388.0,98387.0,0.2032468]
[1739258658053,0.3618,98388.0,98387.0,0.2032468]
[1739258658859,0.001,98388.0,98387.0,0.2032468]
[1739258659060,0.3618,98388.0,98387.0,0.2032468]
[1739258661061,0.3608,98388.0,98387.0,0.2032468]
[1739258665062,0.564046,98388.0,98387.0,0.2032468]
[1739258666855,0.565046,98388.0,98387.0,0.2032468]
[1739258668150,0.3618,98388.0,98387.0,0.2032468]
[1739258669869,0.2032263,98398.0,98395.0,0.2032307]
[1739258670060,0.06764,98405.0,98395.0,0.2032307]
[1739258670361,0.2032276,98397.0,98395.0,0.2032307]
[1739258670568,0.2032193,98401.0,98399.0,0.5640232]
[1739258670762,0.04327307,98400.0,98399.0,0.5640232]
[1739258672169,0.04327307,98400.0,98399.0,0.3608]
[1739258673263,0.033,98400.0,98399.0,0.3608]
[1739258673459,0.2032193,98401.0,98399.0,0.3608]
[1739258674263,0.2032193,98401.0,98399.0,0.5640228]
[1739258676857,0.00015243,98409.0,98399.0,0.3608]
[1739258677057,0.00015243,98409.0,98407.0,0.2032067]
[1739258677858,0.00015243,98409.0,98407.0,0.5640067]
[1739258678567,0.00015243,98409.0,98408.0,0.063]
[1739258679574,0.00315243,98409.0,98408.0,0.063]
[1739258680166,0.00915243,98409.0,98408.0,0.063]
[1739258682775,0.00915243,98409.0,98408.0,0.4238]
[1739258684977,0.00915243,98409.0,98408.0,0.063]
[1739258685177,0.00915243,98409.0,98408.0,0.4238]
[1739258688575,0.00915243,98409.0,98408.0,0.6270047]
[1739258692678,0.00915243,98409.0,98408.0,0.2662047]
[1739258692981,0.00915243,98409.0,98408.0,0.6270047]
[1739258697086,0.00915243,98409.0,98408.0,0.8093122]
[1739258699885,0.00915243,98409.0,98408.0,0.7769122]
[1739258701186,0.00915243,98409.0,98408.0,0.5946047]
[1739258706288,1e-08,98409.0,98408.0,0.5946047]
[1739258706489,1e-08,98409.0,98408.0,0.60731146]
[1739258707891,1e-08,98409.0,98408.0,0.60731088]
[1739258709274,1e-08,98409.0,98408.0,0.24651088]
[1739258709475,1e-08,98409.0,98408.0,0.60731088]
[1739258710489,1e-08,98409.0,98408.0,0.91185157]
[1739258710690,0.0322,98432.0,98408.0,0.77624687]
[1739258710890,0.0511,98433.0,98432.0,0.2031551]
[1739258712694,0.0511,98433.0,98432.0,0.2158587]
[1739258713593,0.0511,98433.0,98432.0,0.2758587]
[1739258714180,0.0511,98433.0,98432.0,0.27585868]
[1739258714385,0.0511,98433.0,98432.0,0.2631551]
[1739258715797,0.0511,98433.0,98432.0,0.27585868]
[1739258716000,0.0511,98433.0,98432.0,0.21585868]
[1739258716293,0.0511,98433.0,98432.0,0.2031551]
[1739258716498,0.0511,98433.0,98432.0,0.21324158]
[1739258718897,0.0511,98433.0,98432.0,0.57404158]
[1739258719690,0.0511,98433.0,98432.0,0.58674516]
[1739258720290,0.0511,98433.0,98432.0,0.57404158]
[1739258721287,0.033,98440.0,98439.0,0.2031407]
[1739258722501,0.038,98440.0,98439.0,0.2031407]
[1739258722802,0.041,98440.0,98439.0,0.2031407]
[1739258733112,0.041,98440.0,98439.0,0.5639407]
[1739258736107,0.041,98440.0,98439.0,0.2031407]
[1739258736314,0.041,98440.0,98439.0,0.5639407]
[1739258749230,0.041,98440.0,98439.0,0.2031407]
[1739258749434,0.041,98440.0,98439.0,0.5639407]
[1739258751541,0.041,98440.0,98439.0,0.2031407]
[1739258751838,0.041,98440.0,98439.0,0.5639407]
[1739258753027,0.041,98440.0,98439.0,0.2031407]
[1739258753235,0.041,98440.0,98439.0,0.5639407]
[1739258753742,0.041,98440.0,98439.0,0.2031407]
[1739258754137,0.041,98440.0,98439.0,0.5639407]
[1739258756850,0.00152464,98449.0,98439.0,0.3608]
[1739258757036,0.20464584,98449.0,98439.0,0.47006102]
[1739258757346,0.20464584,98449.0,98445.0,0.2031274]
[1739258757537,0.00152464,98449.0,98447.0,0.5639234]
[1739258758131,0.00652464,98449.0,98448.0,0.01270129]
[1739258758333,0.005,98449.0,98448.0,0.01270129]
[1739258758743,0.007,98449.0,98448.0,0.01270129]
[1739258759144,0.005,98449.0,98448.0,0.01270101]
[1739258759340,0.01,98449.0,98448.0,0.01270101]
[1739258759741,0.015,98449.0,98448.0,0.01270101]
[1739258760448,0.005,98449.0,98448.0,0.01270101]
[1739258760747,0.015,98449.0,98448.0,0.01370101]
[1739258760948,0.015,98449.0,98448.0,0.01370099]
[1739258763143,0.015,98449.0,98448.0,0.21682309]
[1739258763444,0.0329,98467.0,98466.0,0.203085]
[1739258763949,0.0329,98467.0,98460.0,0.3608]
[1739258764153,0.2030893,98464.0,98461.0,0.2030945]
[1739258764541,0.2030893,98464.0,98462.0,0.2030916]
[1739258764741,0.0329,98467.0,98460.0,0.3608]
[1739258764935,0.2429829,98467.0,98466.0,0.001]
[1739258765336,0.2030882,98465.0,98462.0,0.2030929]
[1739258765546,0.2030932,98462.0,98461.0,0.001]
[1739258765949,0.2030932,98462.0,98460.0,0.3618]
[1739258766253,0.2030932,98462.0,98460.0,0.54391558]
[1739258766752,0.2130932,98462.0,98461.0,0.001]
[1739258768152,0.2130932,98462.0,98460.0,0.74813218]
[1739258768448,0.2130932,98462.0,98460.0,0.74701218]
[1739258768845,0.2200932,98462.0,98461.0,0.001]
[1739258769449,0.2200932,98462.0,98460.0,0.5670166]
[1739258769646,0.2200932,98462.0,98460.0,0.5658966]
[1739258770048,0.2100932,98462.0,98461.0,0.001]
[1739258770248,0.2250932,98462.0,98461.0,0.001]
[1739258770946,0.2250932,98462.0,98460.0,0.5670166]
[1739258771155,0.2250932,98462.0,98461.0,0.001]
[1739258772452,0.2250932,98462.0,98461.0,0.002]
[1739258773150,0.022,98462.0,98461.0,0.002]
[1739258773953,0.022,98462.0,98461.0,0.0621]
[1739258774857,0.007,98462.0,98461.0,0.0611]
[1739258775260,0.2030774,98470.0,98461.0,0.0601]
[1739258776259,0.2030774,98470.0,98465.0,0.203086]
[1739258776565,0.2030774,98470.0,98461.0,0.2030953]
[1739258776858,0.3608,98475.0,98460.0,0.47118102]
[1739258777060,0.2030791,98469.0,98466.0,0.2030847]
[1739258778254,0.002,98470.0,98460.0,0.565017]
[1739258778255,0.2030905,98464.0,98460.0,0.565017]
[1739258778553,0.0328,98463.0,98460.0,0.563897]
[1739258779560,0.0328,98463.0,98461.0,0.203094]
[1739258781265,0.0338,98463.0,98461.0,0.203094]
[1739258785667,0.001,98463.0,98461.0,0.203094]
[1739258786567,0.001,98463.0,98460.0,0.54403558]
[1739258786870,0.001,98463.0,98462.0,0.2030932]
[1739258787772,0.0318,98468.0,98464.0,0.2030874]
[1739258787773,0.2030832,98467.0,98464.0,0.2030874]
[1739258788170,0.0318,98468.0,98464.0,0.2030874]
[1739258788171,0.2030862,98466.0,98464.0,0.2030874]
[1739258790374,0.2080862,98466.0,98464.0,0.2030874]
[1739258791071,0.2080862,98466.0,98464.0,0.38520298]
[1739258796375,0.005,98466.0,98464.0,0.38520298]
[1739258797082,0.005,98466.0,98465.0,0.031]
[1739258797377,0.005,98466.0,98465.0,0.0614]
[1739258797582,0.005,98466.0,98465.0,0.1214]
[1739258798080,0.005,98466.0,98465.0,0.0614]
[1739258798275,0.002,98466.0,98465.0,0.0614]
[1739258798476,0.005,98466.0,98465.0,0.07204518]
[1739258799387,0.005,98466.0,98465.0,0.28446595]
[1739258799579,0.005,98466.0,98465.0,0.25346595]
[1739258800683,0.005,98466.0,98465.0,0.25365462]
[1739258802181,0.208085,98466.0,98465.0,0.25365462]
[1739258806484,0.206085,98466.0,98465.0,0.25380132]
[1739258806681,0.207085,98466.0,98465.0,0.01098055]
[1739258806890,0.204085,98466.0,98465.0,0.01096569]
[1739258807682,0.203085,98466.0,98465.0,0.01096569]
[1739258807884,0.203085,98466.0,98465.0,0.01196569]
[1739258808677,0.203085,98466.0,98465.0,0.01197304]
[1739258810885,0.203085,98466.0,98465.0,0.25479381]
[1739258812289,0.203085,98466.0,98465.0,0.25482017]
[1739258813284,0.203085,98466.0,98465.0,0.25479789]
[1739258814492,0.203085,98466.0,98465.0,0.01197712]
[1739258817094,0.2030728,98472.0,98471.0,0.203074]
[1739258817297,0.2030728,98472.0,98471.0,0.21405112]
[1739258818186,0.2050728,98472.0,98471.0,0.21405112]
[1739258819094,0.2050728,98472.0,98471.0,0.214148]
[1739258819394,0.2080728,98472.0,98471.0,0.214148]
[1739258819590,0.2080728,98472.0,98471.0,0.23224654]
[1739258820783,0.2080728,98472.0,98471.0,0.214148]
[1739258820983,0.2080728,98472.0,98471.0,0.23218765]
[1739258821184,0.2080728,98472.0,98471.0,0.011074]
[1739258822487,0.005,98472.0,98466.0,0.24282077]
[1739258822690,0.2030809,98468.0,98467.0,0.01107699]
[1739258824990,0.2040809,98468.0,98467.0,0.01107699]
[1739258828900,0.2040809,98468.0,98467.0,0.02928706]
[1739258829406,0.2040809,98468.0,98467.0,0.02959237]
[1739258830898,0.2040809,98468.0,98467.0,0.01871479]
[1739258831104,0.2040809,98468.0,98467.0,0.03041107]
[1739258831496,0.001,98468.0,98467.0,0.03041107]
[1739258832803,0.001,98468.0,98467.0,0.05427103]
[1739258832995,0.001,98468.0,98467.0,0.11687103]
[1739258833799,0.001,98468.0,98467.0,0.09301107]
[1739258834810,0.001,98468.0,98467.0,0.1168718]
[1739258838009,0.001,98468.0,98467.0,0.1496718]
[1739258839311,0.001,98468.0,98467.0,0.15099049]
[1739258841411,0.001,98468.0,98467.0,0.15069829]
[1739258842708,0.2030555,98481.0,98467.0,0.15069829]
[1739258842906,0.2030555,98481.0,98477.0,0.2030616]
[1739258843105,0.2030555,98481.0,98478.0,0.0312548]
[1739258843410,0.2030555,98481.0,98479.0,0.0312548]
[1739258843612,0.2030555,98481.0,98480.0,0.0312548]
[1739258843907,0.2040555,98481.0,98480.0,0.0312548]
[1739258844710,0.2130555,98481.0,98480.0,0.0312548]
[1739258845405,0.01,98481.0,98480.0,0.0312548]
[1739258845606,0.013,98481.0,98480.0,0.03105597]
[1739258846013,0.013,98481.0,98480.0,0.03116504]
[1739258846711,0.01,98481.0,98480.0,0.03216504]
[1739258847014,0.015,98481.0,98480.0,0.03216504]
[1739258847819,0.015,98481.0,98480.0,0.03212194]
[1739258849911,0.015,98481.0,98480.0,0.03207547]
[1739258853912,0.015,98481.0,98480.0,0.001]
[1739258854122,0.015,98481.0,98480.0,0.03182621]
[1739258856109,0.015,98481.0,98480.0,0.001]
[1739258856305,0.015,98481.0,98480.0,0.03198684]
[1739258860420,0.015,98481.0,98480.0,0.03119961]
[1739258863216,0.005,98481.0,98480.0,0.03519961]
[1739258863424,0.2030524,98482.0,98480.0,0.03719961]
[1739258863623,0.2030524,98482.0,98481.0,0.03019961]
[1739258865427,0.2030524,98482.0,98481.0,0.03119961]
[1739258865626,0.2030524,98482.0,98481.0,0.03519961]
[1739258866727,0.2030524,98482.0,98481.0,0.03419961]
[1739258866937,0.2030524,98482.0,98481.0,0.03519961]
[1739258867131,0.2030524,98482.0,98481.0,0.03119961]
[1739258867323,0.2030524,98482.0,98481.0,0.03519961]
[1739258867830,0.2030524,98482.0,98481.0,0.01661495]
[1739258868929,0.2030524,98482.0,98481.0,0.01561495]
[1739258869128,0.2030524,98482.0,98481.0,0.01661495]
[1739258869533,0.2030524,98482.0,98481.0,0.01561495]
[1739258870224,0.2030524,98482.0,98481.0,0.01161495]
[1739258870421,0.2030524,98482.0,98481.0,0.01361495]
[1739258870732,0.2030524,98482.0,98481.0,0.03201722]
[1739258871128,0.2030524,98482.0,98481.0,0.002]
[1739258871329,0.2030524,98482.0,98481.0,0.0134894]
[1739258872824,0.2030524,98482.0,98481.0,0.01347102]
[1739258873428,0.2030524,98482.0,98481.0,0.01447102]
[1739258874133,0.2030524,98482.0,98481.0,0.03291239]
[1739258874932,0.2030524,98482.0,98481.0,0.03296724]
[1739258876922,0.2030524,98482.0,98481.0,0.003]
[1739258877128,0.2030524,98482.0,98481.0,0.03306109]
[1739258879138,0.2030524,98482.0,98481.0,0.033022]
[1739258888845,0.2030524,98482.0,98481.0,0.014582]
[1739258889037,0.2030524,98482.0,98481.0,0.03311394]
[1739258894453,0.2030524,98482.0,98481.0,0.014582]
[1739258895253,0.2030524,98482.0,98481.0,0.01441302]
[1739258895755,0.2030524,98482.0,98481.0,0.01442513]
[1739258896352,0.2030524,98482.0,98481.0,0.25747791]
[1739258903254,0.2030524,98482.0,98481.0,0.01442565]
[1739258903655,0.2030524,98482.0,98481.0,0.01436273]
[1739258904550,0.2030524,98482.0,98481.0,0.03256566]
[1739258905758,0.2030524,98482.0,98481.0,0.03255576]
[1739258910958,0.2030524,98482.0,98481.0,0.01436732]
[1739258914165,0.2030524,98482.0,98481.0,0.01434203]
[1739258918270,0.2030524,98482.0,98481.0,0.01434345]
[1739258926365,0.2030524,98482.0,98481.0,0.003]
[1739258938587,0.2040524,98482.0,98481.0,0.002]
[1739258938991,0.2030561,98480.0,98479.0,0.01013946]
[1739258939293,0.2030623,98477.0,98476.0,0.18248329]
[1739258939695,0.2030623,98477.0,98476.0,0.19278986]
[1739258940786,0.2030623,98477.0,98476.0,0.19378986]
[1739258942793,0.2030623,98477.0,98476.0,0.19578986]
[1739258943288,0.2030623,98477.0,98476.0,0.19478986]
[1739258943598,0.2030623,98477.0,98476.0,0.19278986]
[1739258943895,0.2030623,98477.0,98476.0,0.19378986]
[1739258944290,0.2030623,98477.0,98476.0,0.20486523]
[1739258944591,0.2030623,98477.0,98476.0,0.20587901]
[1739258945092,0.2030623,98477.0,98476.0,0.02339572]
[1739258945293,0.2030623,98477.0,98476.0,0.22646012]
[1739258945597,0.2030623,98477.0,98476.0,0.21537097]
[1739258946096,0.2030623,98477.0,98476.0,0.21437097]
[1739258946397,0.2030566,98480.0,98477.0,0.2030604]
[1739258946587,0.2030589,98479.0,98477.0,0.2030604]
[1739258947495,0.2030589,98479.0,98477.0,0.2040604]
[1739258947999,0.2030589,98479.0,98477.0,0.2030604]
[1739258948302,0.2030589,98479.0,98477.0,0.2040604]
[1739258948693,0.2030589,98479.0,98478.0,0.19354356]
[1739258949200,0.3608,98486.0,98483.0,0.2030488]
[1739258949397,0.3608,98486.0,98484.0,0.0612]
[1739258949701,0.5638447,98486.0,98484.0,0.0612]
[1739258950395,0.5638447,98486.0,98484.0,0.092]
[1739258950587,0.5658447,98486.0,98484.0,0.092]
[1739258950791,0.5708447,98486.0,98484.0,0.092]
[1739258951095,0.5688447,98486.0,98484.0,0.2950478]
[1739258951302,0.5688447,98486.0,98484.0,0.092]
[1739258951596,0.5688447,98486.0,98484.0,0.0612]
[1739258951989,0.5648447,98486.0,98484.0,0.0612]
[1739258953396,0.5648447,98486.0,98484.0,0.0622]
[1739258953600,0.5638447,98486.0,98484.0,0.0642]
[1739258954406,0.3608,98486.0,98485.0,0.2030458]
[1739258955102,0.2030458,98485.0,98484.0,0.0632]
[1739258955697,0.2030458,98485.0,98484.0,0.002]
[1739258956896,0.2030458,98485.0,98484.0,0.001]
[1739258957101,0.3608,98486.0,98481.0,0.18248329]
[1739258957398,0.2030458,98485.0,98484.0,0.001]
[1739258957696,0.3608,98486.0,98481.0,0.18248329]
[1739258957900,0.203052,98482.0,98481.0,0.18248329]
[1739258958292,0.203052,98482.0,98481.0,0.18548329]
[1739258958495,0.3608,98486.0,98481.0,0.18548329]
[1739258958693,0.2030509,98483.0,98481.0,0.18548329]
[1739258958892,0.2030509,98483.0,98481.0,0.003]
[1739258959599,0.2030509,98483.0,98481.0,0.004]
[1739258961994,0.2030509,98483.0,98481.0,0.003]
[1739258964598,0.2030509,98483.0,98481.0,0.002]
[1739258969396,0.2030509,98483.0,98481.0,0.001]
[1739258980505,0.2030541,98481.0,98480.0,0.18248329]
[1739258983616,0.2030541,98481.0,98479.0,0.18248329]
[1739258984219,0.2050541,98481.0,98479.0,0.18248329]
[1739258984913,0.2040541,98481.0,98479.0,0.18248329]
[1739258987222,0.2030566,98480.0,98478.0,0.18248329]
[1739258995025,0.2030623,98477.0,98474.0,0.18248329]
[1739258996325,0.2030652,98476.0,98474.0,0.18548329]
[1739258996516,0.2030652,98476.0,98474.0,0.18648329]
[1739258999825,0.2030652,98476.0,98474.0,0.1967816]
[1739259002433,0.2030652,98476.0,98474.0,0.01429831]
[1739259010439,0.2030652,98476.0,98474.0,0.25735057]
[1739259019442,0.2030652,98476.0,98474.0,0.01429831]
[1739259023135,0.2030652,98476.0,98475.0,0.24305226]
[1739259024939,0.2030652,98476.0,98475.0,0.24405226]
[1739259025535,0.2030652,98476.0,98475.0,0.24605226]
[1739259030536,0.2030652,98476.0,98475.0,0.003]
[1739259056354,0.5638652,98476.0,98475.0,0.003]
[1739259063062,0.5648652,98476.0,98475.0,0.002]
[1739259063562,0.5648652,98476.0,98475.0,0.001]
[1739259064364,0.5688652,98476.0,98474.0,0.01029831]
[1739259064565,0.0328,98475.0,98469.0,0.18242649]
[1739259064758,0.2030768,98470.0,98469.0,0.18242649]
[1739259065759,0.2030768,98470.0,98469.0,0.18342649]
[1739259066154,0.2030768,98470.0,98469.0,0.18242649]
[1739259066356,0.2030768,98470.0,98469.0,0.001]
[1739259074063,0.2030768,98470.0,98469.0,0.18342649]
[1739259075072,0.2030933,98462.0,98461.0,0.25305126]
[1739259075261,0.5638933,98462.0,98461.0,0.25305126]
[1739259075567,0.6312533,98462.0,98461.0,0.25305126]
[1739259075969,0.6312533,98462.0,98461.0,0.24305226]
[1739259076154,0.6322533,98462.0,98461.0,0.24905226]
[1739259076358,0.6322533,98462.0,98461.0,0.25205226]
[1739259078168,0.6322533,98462.0,98461.0,0.24905226]
[1739259078468,0.8491533,98462.0,98461.0,0.25005226]
[1739259079173,0.8491533,98462.0,98461.0,0.007]
[1739259091477,0.2031304,98444.0,98443.0,0.10272889]
[1739259092787,0.2041304,98444.0,98443.0,0.12770169]
[1739259093470,0.2051304,98444.0,98443.0,0.13470169]
[1739259094272,0.2051304,98444.0,98443.0,0.13370169]
[1739259094877,0.2051304,98444.0,98443.0,0.12670169]
[1739259094878,0.2041304,98444.0,98443.0,0.12670169]
[1739259095081,0.2051304,98444.0,98443.0,0.12770169]
[1739259095277,0.002,98444.0,98443.0,0.12770169]
[1739259101178,0.002,98444.0,98443.0,0.13844956]
[1739259101389,0.002,98444.0,98443.0,0.13844986]
[1739259102088,0.002,98444.0,98443.0,0.12770169]
[1739259102488,0.002,98444.0,98443.0,0.13846079]
[1739259103283,0.002,98444.0,98443.0,0.12770169]
[1739259103485,0.002,98444.0,98443.0,0.13846147]
[1739259105889,0.002,98444.0,98443.0,0.34159397]
[1739259106677,0.002,98444.0,98443.0,0.70239397]
[1739259106888,0.2179,98460.0,98443.0,0.51196356]